Cogmind - Beta 15 *** ADVENTURER MODE // 2025.06.13 @ 22:50:46 Player: tcfire Result: Destroyed by QN-0OH(R) with Subdweller Machine Gun Performance ------------- Evolutions (0) 0 Regions Visited (3) 600 Robots Destroyed (19) 95 Value Destroyed (536) 536 Prototype IDs (2) 40 Alien Tech Used (0) 0 Bonus (48) 48 TOTAL SCORE: 1319 Bonus ------- Follower Combat Kills 65 Friendly Fire -17 Cogmind --------- Core Integrity 0/250 Matter 300/300 Energy 160/180 System Corruption 0% Temperature Cool (0) Movement Core (250) Ox4 Location -10/Subcaves Parts ------- > --- POWER (1) -------- Meta Core > --- PROPULSION (2+1) - (None) > --- UTILITY (2) ------ Small Storage Unit > --- WEAPON (2+1) ----- EM Shotgun > --- INVENTORY (8) ---- Ion Engine Ion Engine Wheel Peak State ------------ > --- POWER ------------ Meta Core > --- PROPULSION ------- (None) > --- UTILITY ---------- Small Storage Unit Scrap Shield > --- WEAPON ----------- EM Shotgun > --- INVENTORY -------- Ion Engine Ion Engine Wheel [Rating: 20] Favorites ----------- Power Ion Engine Engine Ion Engine Power Core Meta Core Propulsion Aluminum Leg Leg Aluminum Leg Utility Small Storage Unit Device Experimental Sensor Array Storage Small Storage Unit Protection Scrap Shield Weapon EM Shotgun Energy Gun EM Shotgun Launcher Mini Grenade Launcher Build | -11 -10 -10 -10 ------- Run | Yrd Mat Min Sub Slots Evolved . | . . . . Power . | . . . . Propulsion . | . . . . Utility . | . . . . Weapon . | . . . . Parts Attached 17 | 6 1 3 7 Power 2 | 1 . . 1 Engine 1 | 1 . . . Core 1 | . . . 1 Reactor . | . . . . Propulsion 3 | 2 . . 1 Treads . | . . . . Leg 3 | 2 . . 1 Wheel . | . . . . Hover . | . . . . Flight . | . . . . Utility 4 | 1 1 1 1 Device 2 | . 1 1 . Storage 1 | 1 . . . Processor . | . . . . Hackware . | . . . . Protection 1 | . . . 1 Artifact . | . . . . Weapon 8 | 2 . 2 4 Energy Gun 7 | 2 . 2 3 Energy Cannon . | . . . . Ballistic Gun . | . . . . Ballistic Cannon . | . . . . Launcher 1 | . . . 1 Special Weapon . | . . . . Impact Weapon . | . . . . Slashing Weapon . | . . . . Piercing Weapon . | . . . . Special Melee Weapon . | . . . . Unidentified Prototypes 2 | . . 1 1 Parts Lost 11 | . . 1 10 Power . | . . . . Propulsion 3 | . . . 3 Utility 2 | . . . 2 Weapon 6 | . . 1 5 Highest Loss Streak 6 | . . 1 6 To Critical Strikes . | . . . . Average Backups 5 | 1 3 6 4 Power 1 | . 1 1 1 Propulsion . | . 1 1 1 Utility . | . . . . Weapon 2 | . 1 4 1 Tool/Special . | . . . . Unused Backups 3 | . . . 3 Power 1 | . . . 1 Propulsion 1 | . . . 1 Utility 1 | . . . 1 Weapon . | . . . . Tool/Special . | . . . . Average Slot Usage (%) 77 | . 98 99 63 Engine 10 | . 14 14 7 Core 3 | . . . 5 Leg 17 | . 28 28 11 Device 9 | . 12 14 6 Storage 13 | . 14 14 12 Energy Gun 20 | . 28 27 16 Launcher 2 | . . . 3 Peak Build Rating 20 | 6 8 17 20 Average Rating 13 | 4 7 12 15 On Entrance 7 | . 6 8 17 Naked Turns . | . . . . Heaviest Build 17 | 14 15 17 17 Greatest Support 20 | 20 20 20 20 Greatest Overweight (x) 5 | 1 . . 5 Average Overweight (x) . | . . . 1 Largest Inventory Capacity 8 | 8 8 8 8 Average Capacity 7 | 6 8 8 8 Most Carried 8 | 4 7 8 7 Average Carried 5 | 1 3 6 4 Final Capacity 8 | 8 8 8 8 Final Carried 7 | 2 7 6 3 Class Distribution -------------------- 100% | Mutant Dominant Class ---------------- Mutant | -10/Materials Mutant | -10/Mines Mutant | -10/Subcaves Resources | -11 -10 -10 -10 ----------- Run | Yrd Mat Min Sub Matter Collected 426 | 110 70 116 130 Remotely . | . . . . Salvage Created 642 | . 154 158 330 Parts 32 | . 7 6 19 Haulers Intercepted . | . . . . Recyclers Shooed . | . . . . Parts Field Recycled . | . . . . Retrieved Matter . | . . . . Parts Self-Destructed 9 | . . . 9 Prevented 1 | . . . 1 Kills | -11 -10 -10 -10 ------- Run | Yrd Mat Min Sub Combat Hostiles Destroyed 16 | . 2 5 9 Guns 13 | . 2 5 6 AOE 3 | . . . 3 Classes Destroyed 6 | . 3 1 2 Builder 1 | . 1 . . Watcher 2 | . 2 . . Swarmer 5 | . . 3 2 Grunt 5 | . 2 2 1 Artisan 1 | . . . 1 Subdweller 6 | . . . 6 Best Kill Streak 3 | . 2 3 3 Combat Bots Only 3 | . 2 3 3 Max Kills in Single Turn 2 | . 2 2 1 Gunslinging . | . . . . Exploded 1 | . . . 1 Melee . | . . . . Uniques/NPCs Destroyed . | . . . . Combat | -11 -10 -10 -10 -------- Run | Yrd Mat Min Sub Hostile Shots Fired 95 | . 7 23 65 Missed 26 | . 2 3 21 Hits 69 | . 5 20 44 Projectile 69 | . 5 20 44 AOE 4 | . . . 4 Critical Strikes 1 | . . 1 . Damage Taken 1019 | . 57 168 794 Core 257 | . 23 47 187 Absorbed by Shields . | . . . . Ignored by Resistances 292 | . 17 53 222 Core Remaining (%) 100 | 100 . . . Volleys Fired 53 | . 6 12 35 Largest 2 | . 2 2 2 Hottest 101 | . 90 90 101 Shots Fired 96 | . 12 22 62 Gun 87 | . 12 22 53 Cannon . | . . . . Launcher 9 | . . . 9 Special . | . . . . Kinetic . | . . . . Thermal 21 | . 6 8 7 Explosive 9 | . . . 9 Electromagnetic 66 | . 6 14 46 Robot Hit Streak 36 | . 11 9 36 Robot Miss Streak 3 | . . 3 3 Penetration Max . | . . . . Secondary Targets 3 | . . 1 2 Max Gunslinging Chain 1 | . . 1 1 Shots Hit Robots 78 | . 11 17 50 Core Hits 41 | . 8 7 26 Critical Kills . | . . . . Critical Parts Destroyed . | . . . . Critical Strikes 1 | . . . 1 Burn 1 | . . . 1 Melee Attacks . | . . . . Impact . | . . . . Slashing . | . . . . Piercing . | . . . . Sneak Attacks . | . . . . Combat Hostiles . | . . . . Follow-up Attacks . | . . . . Damage Inflicted 1387 | . 198 240 949 Guns 1061 | . 155 240 666 Cannons . | . . . . Explosions 326 | . 43 . 283 Melee . | . . . . Ramming . | . . . . Kinetic . | . . . . Thermal 308 | . 106 100 102 Explosive 283 | . . . 283 Electromagnetic 796 | . 92 140 564 Impact . | . . . . Slashing . | . . . . Piercing . | . . . . Highest Corruption . | . . . . Average Corruption . | . . . . Corruption Purged . | . . . . Corruption Blocked . | . . . . Overload Shots . | . . . . Overflow Damage 7 | . . . 7 Projectiles . | . . . . Explosions 7 | . . . 7 Melee . | . . . . Knockbacks . | . . . . Impact . | . . . . Kinetic . | . . . . Secondary . | . . . . Self-Inflicted Damage 32 | . . . 32 Shots 2 | . . . 2 Rammed . | . . . . Targets Rammed . | . . . . Kicked . | . . . . Crushed . | . . . . Highest Temperature 318 | . 144 318 . Average Temperature 114 | . 60 142 . Received Heat Transfer 168 | . 39 105 24 Effects 3 | . . 3 . Energy Bleed 2 | . . 2 . Interference 1 | . . 1 . Siege Activations . | . . . . Martial Activations . | . . . . Shielding Activations . | . . . . Robots Disrupted . | . . . . Combat Hostiles . | . . . . Robots Corrupted . | . . . . Combat Hostiles . | . . . . Parts Fried 2 | . . . 2 Impact Corruptions . | . . . . Robots Melted . | . . . . Combat Hostiles . | . . . . Parts Melted 1 | . 1 . . Heat Transferred 864 | . 235 296 333 Parts Sabotaged . | . . . . Parts Stolen . | . . . . Parts Stripped . | . . . . Power Chain Reactions 1 | . 1 . . Alert | -11 -10 -10 -10 ------- Run | Yrd Mat Min Sub Maximum Alert Level . | . . . . Low Security (%) 100 | 100 100 100 . Level 1 . | . . . . Level 2 . | . . . . Level 3 . | . . . . Level 4 . | . . . . Level 5 . | . . . . High Security . | . . . . Max Security . | . . . . Peak Influence 64 | . 50 64 . Initial 10 | . . 10 . Average 11 | . 22 9 . Influence Increases 344 | . 72 124 148 Destroy 0b10 Robot/C 260 | . 40 100 120 Destroy 0b10 Robot/NC 15 | . 15 . . Destroy Leader 54 | . 14 20 20 Allied During Kill 12 | . . 4 8 Destroy Structure 3 | . 3 . . Influence Decreases 344 | . 40 152 152 Entered New Map 25 | . . 22 3 Time Decay 309 | . 40 120 149 Lost Part 10 | . . 10 . Squads Dispatched . | . . . . Investigation . | . . . . Extermination . | . . . . Reinforcement . | . . . . Assault . | . . . . Garrison . | . . . . Intercept . | . . . . Searches Triggered . | . . . . Construction Impeded . | . . . . Haulers Reinforced . | . . . . Active Scanning Responses . | . . . . Cargo Convoy Interrupts . | . . . . Stealth | -11 -10 -10 -10 --------- Run | Yrd Mat Min Sub Distress Signals . | . . . . Communications Jammed . | . . . . Distress Signals . | . . . . Times Spotted 26 | . 5 5 16 Peak Tracking Total 3 | . 2 3 3 Tactical Retreats 1 | . . . 1 Traps | -11 -10 -10 -10 ------- Run | Yrd Mat Min Sub Traps Triggered . | . . . . Indirectly . | . . . . Trap Hack Attempts . | . . . . Triggered . | . . . . Disarmed . | . . . . Reprogrammed . | . . . . Reused . | . . . . Traps Extracted . | . . . . Installed . | . . . . Triggered . | . . . . Machines | -11 -10 -10 -10 ---------- Run | Yrd Mat Min Sub Machines Disabled . | . . . . Max in Single Turn . | . . . . Machines Repaired . | . . . . Machines Dismantled . | . . . . Machines Sabotaged . | . . . . Overloaded Fab Kills . | . . . . Hacking | -11 -10 -10 -10 --------- Run | Yrd Mat Min Sub Machines Accessed . | . . . . Terminals . | . . . . Fabricators . | . . . . Repair Stations . | . . . . Recycling Units . | . . . . Scanalyzers . | . . . . Garrison Access . | . . . . Total Hacks . | . . . . Successful . | . . . . Failed . | . . . . Catastrophic . | . . . . Database Lockouts . | . . . . Manual . | . . . . Terminals . | . . . . Fabricators . | . . . . Repair Stations . | . . . . Recycling Units . | . . . . Scanalyzers . | . . . . Garrison Access . | . . . . Terminal Hacks . | . . . . Fabricator Hacks . | . . . . Repair Station Hacks . | . . . . Recycling Unit Hacks . | . . . . Scanalyzer . | . . . . Garrison Access Hacks . | . . . . Unauthorized Hacks . | . . . . Terminals . | . . . . Fabricators . | . . . . Repair Stations . | . . . . Recycling Units . | . . . . Scanalyzers . | . . . . Garrison Access . | . . . . Data Cores Recovered . | . . . . Used . | . . . . Hacking Detections . | . . . . Full Trace Events . | . . . . Feedback Events . | . . . . Feedback Blocked . | . . . . Robot Schematics Acquired . | . . . . Robots Built . | . . . . Authchips . | . . . . Time . | . . . . Total Robot Build Rating . | . . . . Part Schematics Acquired . | . . . . Parts Built . | . . . . Authchips . | . . . . Time . | . . . . Total Part Build Rating . | . . . . Parts Repaired . | . . . . Time . | . . . . Parts Recycled . | . . . . Recycled Matter . | . . . . Retrieved Matter . | . . . . Retrieved Components . | . . . . Parts Scanalyzed . | . . . . Part Schematics Acquired . | . . . . Parts Damaged . | . . . . Bothacking | -11 -10 -10 -10 ------------ Run | Yrd Mat Min Sub Used RIF Installer . | . . . . Robots Hacked . | . . . . Non-combat . | . . . . Combat . | . . . . Robot Hacks Applied . | . . . . Relay Couplers Released . | . . . . Fabnet Peak Effective % . | . . . . Robots Rewired . | . . . . Allies Hacked . | . . . . Hacks Repelled . | . . . . Allies | -11 -10 -10 -10 -------- Run | Yrd Mat Min Sub Total Allies 2 | . . 2 . Largest Group 2 | . . 2 2 Highest-Rated Group 45 | . . 45 45 Highest-Rated Ally 31 | . . 31 31 Total Orders . | . . . . Ally Attacks 8 | . . . 8 Total Damage 145 | . . . 145 Kills 3 | . . . 3 Allies Corrupted . | . . . . Allies Melted . | . . . . Intel | -11 -10 -10 -10 ------- Run | Yrd Mat Min Sub Active Infowar (turns) 1497 | . 145 706 646 Sensors 813 | . . 358 455 Structural 684 | . 145 348 191 Robot Analysis Total . | . . . . Derelict Logs Recovered 3 | . . 2 1 Drone Launches . | . . . . Drone Recoveries . | . . . . Exploration | -11 -10 -10 -10 ------------- Run | Yrd Mat Min Sub Turns Passed 2333 | 49 157 723 1404 Spaces Moved 1331 | 33 110 489 699 Core 272 | 11 . . 261 Treads . | . . . . Legs 1059 | 22 110 489 438 Wheels . | . . . . Hover . | . . . . Flight . | . . . . Fastest Speed 50 | 50 120 120 120 Average Speed 151 | 108 120 120 179 Slowest Speed 300 | 120 120 120 300 Overloaded Moves . | . . . . Propulsion Burnouts . | . . . . Robots Hopped . | . . . . Potential Cave-ins . | . . . . Cave-ins Triggered . | . . . . Exploration Rate (%) 42 | 4 30 91 44 Regions Visited 3 Branch Regions 2 Pre-discovered Areas 2 | . . 2 . Known Exits Taken . | . . . . Unknown Exits Taken 3 | 1 1 1 . Scrap Searched 1 | . . 1 . Spaces Dug . | . . . . Terrain Destroyed 71 | . 3 . 68 Melee . | . . . . Projectile . | . . . . AOE 71 | . 3 . 68 Terrain Rammed . | . . . . Walls Destroyed . | . . . . Machines Disabled . | . . . . Actions | -11 -10 -10 -10 --------- Run | Yrd Mat Min Sub Total 1557 | 46 123 602 786 Wait 130 | . 1 93 36 Move 1328 | 32 109 488 699 Hop . | . . . . Pick Up 20 | 8 6 1 5 Fast Attach . | . . . . Attach 15 | 6 1 1 7 Detach . | . . . . Swap 4 | . . 2 2 Drop 3 | . . 1 2 Fire 53 | . 6 12 35 Melee . | . . . . Ram . | . . . . Kick . | . . . . Crush . | . . . . Escape Stasis . | . . . . Rewire 4 | . . 4 . Trap . | . . . . Miscellaneous . | . . . . Route ------- -11/Scrapyard -10/Materials -10/Mines (discovered 3 exits: [*Mat x2] / [*Sub]) -10/Subcaves History --------- Turn | Location | Event 8 | -11/Scrapyard | Discovered new exit (range 16) 50 | -11/Scrapyard | Entered Materials 201 | -10/Materials | Discovered new exit (range 6) 207 | -10/Materials | Entered Mines 245 | -10/Mines | Learned location of Storage (-8) 292 | -10/Mines | Discovered new exit (range 14) 311 | -10/Mines | Build established: Mutant 566 | -10/Mines | Found a damaged Exp. Sensor Array with a note attached 569 | -10/Mines | Found Prototype Device 572 | -10/Mines | Identified Exp. Sensor Array 638 | -10/Mines | Discovered new exit (range 7) 913 | -10/Mines | Discovered new exit (range 6) 930 | -10/Mines | Entered Subcaves 930 | -10/Subcaves | Accompanied by 2 allies 935 | -10/Subcaves | Led the pair of lost Derelicts to an unsafe place 1083 | -10/Subcaves | Shifting Twisted Machinery released Mak. Light Armor Plating 1087 | -10/Subcaves | Learned Materials non-interactive machine intel 1382 | -10/Subcaves | Core integrity fell below 50% 1416 | -10/Subcaves | Lost 4 parts (2n1u1w) 1495 | -10/Subcaves | A swath of the cavern ceiling suddenly collapsed 1634 | -10/Subcaves | A Subdweller sparked back to life 1634 | -10/Subcaves | A Subdweller sparked back to life 1634 | -10/Subcaves | A Subdweller sparked back to life 1677 | -10/Subcaves | Found Prototype Power Core 1678 | -10/Subcaves | Identified Meta Core 1679 | -10/Subcaves | Attached Meta Core, gained temporary slots: Propulsion, Utility, Weapon 1699 | -10/Subcaves | Lost 6 parts (1n1u4w) 2328 | -10/Subcaves | Core integrity fell below 20% 2334 | -10/Subcaves | Destroyed by QN-0OH(R) with Subdweller Machine Gun Last Messages --------------- 01667_ HO-RX4(R) destroyed. 01667_ Switching to secondary target: 5E-UWR(R). 01668_ Beam Rifle destroyed. 01670_ 5E-UWR(R) destroyed. 01677_ Acquired Prototype Power Core. 01678_ Identified Meta Core. 01679_ Core temporarily expanded with Propulsion slot. 01679_ Core temporarily expanded with Utility slot. 01679_ Core temporarily expanded with Weapon slot. 01679_ Acquired 23 matter. 01694_ Acquired Lgt. Humpback. 01695_ Dropped Lgt. Humpback. 01703_ Acquired Scrap Shield. 01705_ Dropped Scrap Shield. 01706_ Temporary Utility slot lost. 01706_ Acquired 10 matter. 01863_ Subatomizers dissect the Corrupted Disposable Heat Sink. Map ----- +----------------------------------------------------+ | #????????????????????????????????????????????????? | | ?????????????????????????????????????????????????? | | ?#####???????????????????????????????????????????? | | ?# ##??????????????????????????????????????????? | | ?# #??????????????????????????????????????????? | | ?## #????????????????????? ???????????????????? | | ??## #????????????????????? ???????????????????? | | ??## #????????????????????? ??##???????????????? | | ### #????????????????????? ## ##??????????????? | | #????????????????????? #??????????????? | | ##???????????????????? #??????????????? | | ## #??????????????####??? #??????????????? | | ?# #??????????????# ??? ##?????????????? | | ?# ##??????????????# ??? #?????????????? | | ?# ##???????????????# ??? #?????????????? | | ?# #????????????????? ##? #?????????????? | | ?# ###??????????????## #? #?????????????? | | ?# ####?#######???# ### #??????????????? | | ?## ### ## ####? ## #???????????????? | | ###### ## #??# ## #???????????????? | | #??## ##?# ## #????????????????? | | #?### #?# #R ##???????????????? | | #?# ### # ##??????????????? | | #### #?# R #??????????????? | | #### ### ### ##??????????????? | | ### #?### ## @ #???????????????? | | ?# % ###?## ## #???????????????? | | ?# #### ## ##???????????????? | | ?# ## #????????????????? | | ## ## #???????????????? | | ## ### ##???????????????? | | ### ##### ## #?##### ###????????????????? | | ## #???## ### ###????# #??????????????????? | | ##???# ## #???? #??????????????????? | | #???# ##???? #??????????????????? | | ##### ##?????? ??????????????????? | | ## ##???????? ?????????????????? | | ##### ##????????? ????????????????? | | ##?# #???????????###????????????????? | | ### # #???????????????###????????????? | | # "! ?????????## ##???????????? | | ### #""" #?????????# #???????????? | | #?####""" ????????### #???????????? | | ####??## ???###### #???????????? | | #????###?## #???????????? | | ## #???????## ## #???????????? | | ### #??###### #####?##???????????? | | #?## ##?## ##??????????????????? | | # ??# ##### ##??????????????????? | | # #??# #?# # ####???????????????? | +----------------------------------------------------+ Best States ------------- Heat Dissipation 25 Energy Generation 17 Energy Capacity 250 Matter Stores 300 Matter Capacity 300 Sight Range 16 Robot Scan Range 20 Terrain Scan Density 10 Resistance: KI 20 Resistance: TH 20 Resistance: EX 20 Resistance: EM 20 Resistance: I 20 Resistance: S 20 Resistance: P 20 Evasion (%) 55 Offensive Hacking 10 Item Schematics ----------------- None Robot Schematics ------------------ None Fabricated ------------ Nothing Repaired ---------- Nothing Alien Tech Used ----------------- None Achievements -------------- None Challenges ------------ None Game ------ Seed RingGhostSpoofer Manual? 0 Play Time 00:11:34 Cumulative 37.5 hours Start 2025.06.13 @ 22:40:20 End 2025.06.13 @ 22:50:46 Sessions 1 Manual Loads 0 Difficulty Adventurer Special Mode None Game No. 54 Rogue 0 Adventurer 20 Explorer 34 Win Type - Total 1 Types 1/0/0/0/0/0/0/0/0/0 Lore% 17 Gallery% 42 Achievement% 42 Wizard Run 0 Options --------- Layout 1 ASCII 0 Keyboard 0 Movement Mouse Keybinds 0 Fullscreen 1 Font 42/SmallcapsGlow Map View 52x41 Zoom Use 0% Tactical HUD 1 Map Filters NONE Filters NONE Steam 1 RUN: c95a1ca3-95c5-443c-ac8c-f2f6d926f599